bitfinex-derivatives/quotes_ETHF0:USTF0_20250217
["timestamp","ask_amount","ask_price","bid_price","bid_amount"]
[1739787831508,0.7232,2765.4,2765.1,3.93105]
[1739787831711,2.36798,2765.9,2764.8,3.2078]
[1739787831712,0.72328,2765.1,2764.8,3.2078]
[1739787831910,0.72328,2765.1,2764.8,0.72333]
[1739787832109,0.72331,2765.0,2764.7,8.34721199]
[1739787832413,0.72331,2765.0,2764.7,0.72334]
[1739787832609,0.7233,2765.0,2764.7,0.72335]
[1739787832907,0.72333,2764.9,2764.4,0.5514]
[1739787833110,0.72333,2764.9,2764.5,0.7234]
[1739787833313,0.72336,2764.8,2764.5,8.43183188]
[1739787833513,0.72336,2764.8,2764.6,0.72338]
[1739787833811,0.72334,2764.8,2764.5,8.43183188]
[1739787834012,2.658,2764.8,2764.6,0.72338]
[1739787834309,2.658,2764.8,2764.4,0.5514]
[1739787834310,2.658,2764.8,2764.7,0.72337]
[1739787834816,2.658,2765.1,2765.0,0.72329]
[1739787835716,2.658,2765.2,2764.8,1.80833]
[1739787835918,2.658,2765.2,2765.1,0.72326]
[1739787836118,2.658,2765.2,2764.9,0.5519]
[1739787836316,2.658,2765.2,2765.1,0.72326]
[1739787836510,2.658,2765.2,2764.9,0.5519]
[1739787836718,2.658,2765.2,2765.0,0.72328]
[1739787836909,3.38126,2765.2,2764.9,0.7233]
[1739787837114,2.658,2765.2,2764.7,7.78185355]
[1739787837318,2.658,2765.2,2764.6,7.78185355]
[1739787837615,2.658,2765.2,2764.5,3.7597]
[1739787837815,3.38126,2765.2,2764.9,0.7233]
[1739787838014,3.38126,2765.2,2764.6,7.68631504]
[1739787838015,2.658,2765.2,2765.0,0.72327]
[1739787838215,2.658,2765.2,2764.6,1.80849]
[1739787838815,2.658,2765.2,2764.5,3.7597]
[1739787839010,3.2073,2765.2,2765.1,0.72326]
[1739787839716,2.658,2765.2,2765.1,0.72326]
[1739787840221,3.2078,2765.3,2765.2,0.72324]
[1739787841621,3.2078,2765.6,2765.5,0.72316]
[1739787842627,0.00543016,2766.1,2766.0,0.72303]
[1739787842820,2.66243016,2766.1,2766.0,0.72303]
[1739787844318,0.00543016,2766.1,2766.0,0.72303]
[1739787845124,1.6e-07,2766.1,2766.0,0.72303]
[1739787845320,1.6e-07,2766.1,2766.0,14.16964326]
[1739787845515,3.2078,2767.4,2767.0,0.72277]
[1739787845721,0.90140001,2767.6,2767.0,0.72277]
[1739787845722,0.90140001,2767.6,2767.5,0.72263]
[1739787846124,0.5398,2767.6,2767.5,0.72263]
[1739787847233,2.66141996,2767.8,2767.7,0.72258]
[1739787847422,2.66141996,2767.8,2767.3,3.21321996]
[1739787847628,6.52866894,2767.8,2767.6,0.72259]
[1739787847927,3.87266894,2767.8,2767.3,3.21321996]
[1739787848127,3.93046,2767.4,2766.7,0.72284]
[1739787848323,3.86724898,2766.9,2766.2,0.5396]
[1739787848627,2.656,2766.8,2766.3,7.75176172]
[1739787848926,40.8,2766.7,2766.1,1.1146]
[1739787849127,40.8,2766.7,2766.1,4.3224]
[1739787849431,40.8,2766.7,2766.6,0.72287]
[1739787849737,40.8,2766.7,2766.2,7.75176172]
[1739787849921,40.8,2766.7,2766.6,0.72287]
[1739787850228,2.656,2767.0,2766.9,0.72279]
[1739787850430,3.2078,2767.5,2767.4,0.72266]
[1739787850731,5.8638,2767.5,2767.4,0.72266]
[1739787850927,3.2078,2767.5,2767.4,0.72266]
[1739787851726,2.656,2767.6,2767.0,2.3852]
[1739787851925,2.656,2767.6,2767.5,0.72263]
[1739787852229,5.86921996,2767.8,2767.7,0.72258]
[1739787852430,3.21321996,2767.8,2767.7,0.72258]
[1739787852622,0.00541996,2767.8,2767.7,0.72258]
[1739787854627,0.00541996,2767.8,2767.7,1.84618]
[1739787855032,3.86724898,2768.4,2767.7,10.0615567]
[1739787855227,3.86724898,2768.4,2768.3,0.72243]
[1739787855632,0.5621,2768.5,2768.0,3.2078]
[1739787855833,3.01660001,2768.6,2768.5,0.72237]
[1739787857932,3.57481997,2768.8,2768.3,0.00541996]
[1739787857933,0.00541996,2768.8,2768.7,0.72232]
[1739787858136,0.00541996,2768.8,2768.7,3.93012]
[1739787859836,0.00541996,2768.8,2768.7,0.72232]
[1739787860230,0.00541996,2768.8,2768.4,4.2976]
[1739787860432,0.00541996,2768.8,2768.5,0.72236]
[1739787860737,40.8,2768.7,2768.3,0.00541996]
[1739787861038,43.454,2768.7,2768.3,0.00541996]
[1739787861335,44.17633,2768.7,2768.3,0.72783996]
[1739787861535,43.454,2768.7,2768.3,0.00541996]
[1739787861736,0.72236,2768.6,2768.3,0.00541996]
[1739787862130,47.32124898,2768.7,2768.3,0.00541996]
[1739787862528,47.32124898,2768.7,2768.4,0.72239]
[1739787862737,47.32124898,2768.7,2768.4,0.7224]
[1739787862928,3.86724898,2768.7,2768.4,0.7224]
[1739787863130,0.00541996,2768.8,2768.3,3.21321996]
[1739787863336,0.00541996,2768.8,2768.7,0.72232]
[1739787863529,0.00541996,2768.8,2768.7,3.93012]
[1739787864228,0.00541996,2768.8,2768.7,0.72232]
[1739787864436,0.00541996,2768.8,2768.7,3.93012]
[1739787865340,2.653,2769.3,2768.7,10.91167006]
[1739787865639,3.37517,2769.3,2769.0,0.72224]
[1739787865936,2.653,2769.3,2769.0,0.72224]
[1739787866338,3.37517,2769.3,2769.0,0.72224]
[1739787866635,0.00541996,2769.4,2769.0,3.2078]
[1739787866942,0.00541996,2769.4,2769.0,3.93003]
[1739787867134,0.00541996,2769.4,2769.0,3.2078]
[1739787867633,0.00541996,2769.4,2769.1,0.72222]
[1739787867842,0.00541996,2769.4,2769.0,3.2078]
[1739787868141,0.00541996,2769.4,2769.1,0.72221]
[1739787868337,0.72757996,2769.4,2769.0,3.93003]
[1739787868535,0.00541996,2769.4,2769.1,0.72219]
[1739787868732,0.00307995,2769.2,2769.1,0.72222]
[1739787873043,0.00541996,2769.4,2769.3,0.72217]
[1739787873633,1.092,2770.2,2769.3,0.72217]
[1739787873634,3.86724898,2770.7,2769.3,13.35699233]
[1739787873839,3.86724898,2770.7,2770.0,3.2078]
[1739787873840,2.652,2770.6,2770.0,3.2078]
[1739787874047,0.72186,2770.5,2770.2,0.72191]
[1739787874243,3.2078,2770.5,2770.0,3.2078]
[1739787874541,3.2078,2770.5,2770.1,0.72194]
[1739787874748,3.92968,2770.5,2770.1,0.72194]
[1739787875038,0.72189,2770.4,2770.1,0.72194]
[1739787875240,3.2078,2770.5,2770.2,0.72191]
[1739787875443,0.72541346,2770.6,2770.2,0.72191]
[1739787875444,0.00357346,2770.6,2770.3,3.2078]
[1739787875633,3.2078,2771.4,2770.3,4.3244]
[1739787875840,3.92943,2771.4,2770.8,0.72177]
[1739787876035,6.51924898,2771.6,2770.7,3.2078]
[1739787876242,2.652,2771.6,2770.7,3.2078]
[1739787876445,2.652,2771.6,2770.9,0.72174]
[1739787876642,2.652,2771.6,2770.8,7.52785599]
[1739787876853,3.2078,2771.1,2770.4,0.5395]
[1739787877039,3.2078,2770.8,2770.3,3.7522]
[1739787877240,2.651,2771.0,2770.0,3.21321996]
[1739787877440,4.58908898,2770.6,2770.0,0.00541996]
[1739787877642,2.651,2770.5,2770.1,0.72194]
[1739787877944,3.1735,2770.9,2770.5,0.72184]
[1739787878142,2.651,2771.0,2770.3,3.2078]
[1739787878445,3.2078,2770.8,2770.1,7.55038757]
[1739787878650,3.2078,2770.5,2770.0,3.76171996]
[1739787878849,3.2078,2770.5,2770.0,0.55391996]
[1739787878850,5.8588,2770.5,2770.0,0.55391996]
[1739787879148,2.651,2770.5,2770.0,0.55391996]
[1739787879443,2.651,2770.5,2770.0,3.76171996]
[1739787879642,3.2078,2770.9,2770.0,3.76171996]
[1739787879844,3.2078,2770.9,2770.3,3.2078]
[1739787879845,0.72177,2770.8,2770.3,3.2078]
[1739787880044,0.72179,2770.8,2770.3,3.9297]
[1739787880349,0.72179,2770.8,2770.4,0.72188]
[1739787880547,3.86724898,2771.2,2770.4,0.72188]
[1739787880850,0.7217,2771.1,2770.6,3.92961]
[1739787881143,2.651,2771.2,2770.7,0.5585]
[1739787881348,3.2078,2771.0,2770.3,0.5585]
[1739787881550,0.7218,2770.7,2770.3,8.00463732]
[1739787881742,3.2078,2771.0,2770.3,0.5585]
[1739787881940,3.2078,2771.0,2770.4,7.70834462]
[1739787882145,0.72183,2770.6,2770.4,7.70834462]
[1739787882450,3.2078,2771.0,2770.4,7.70834462]
[1739787882451,3.37281,2770.7,2770.4,7.70834462]
[1739787882750,0.72185,2770.5,2770.4,7.70834462]
[1739787882944,3.86724898,2770.6,2770.0,0.00541996]
[1739787883144,5.8588,2770.7,2770.0,3.21321996]
[1739787883349,5.8588,2770.7,2770.1,8.32799624]
[1739787883350,0.72185,2770.6,2770.1,8.32799624]
[1739787883543,0.72189,2770.4,2770.1,7.60604624]
[1739787883746,5.8588,2770.7,2770.1,7.60604624]
[1739787883954,3.2078,2770.7,2770.1,7.60604624]
[1739787884248,2.65,2770.6,2770.3,0.72189]
[1739787884446,3.2078,2770.7,2770.4,0.5522]
[1739787884749,0.72185,2770.5,2770.4,0.5522]
[1739787884941,3.2078,2770.7,2770.2,0.5521]
[1739787885141,3.2078,2770.7,2770.0,3.21321996]
[1739787885342,0.72195,2770.2,2770.0,3.21321996]
[1739787885543,0.72193,2770.2,2770.1,7.71883752]
[1739787885738,0.72193,2770.2,2770.0,0.00541996]
[1739787885739,3.2078,2770.7,2770.0,0.00541996]
[1739787885945,0.72196,2770.1,2770.0,0.00541996]
[1739787887755,0.72192,2770.3,2770.0,0.00541996]
[1739787887949,3.2078,2770.4,2770.0,0.00541996]
[1739787888252,0.72196,2770.1,2770.0,0.00541996]
[1739787888948,3.92976,2770.1,2770.0,0.00541996]
[1739787889146,0.72196,2770.1,2770.0,0.00541996]
[1739787890357,3.92976,2770.1,2770.0,0.00541996]
[1739787891551,0.72217,2769.3,2769.2,3.2078]
[1739787891852,0.72223,2769.1,2768.8,4.2992]
[1739787892062,0.72223,2769.1,2768.8,5.02148]
[1739787892349,0.72223,2769.1,2768.9,8.26627101]
[1739787892554,0.72222,2769.1,2768.9,7.54401101]
[1739787892756,0.72224,2769.0,2768.9,7.54401101]
[1739787892958,0.7223,2768.8,2768.7,0.00541996]
[1739787893549,7.07764898,2768.9,2767.4,3.2078]
[1739787893759,7.07764898,2768.9,2767.4,4.3308]
[1739787893760,3.2078,2768.0,2767.4,4.3308]
[1739787894065,0.72253,2767.9,2767.8,7.52403463]
[1739787895059,2.651,2768.1,2767.8,7.52403463]
[1739787895358,5.8588,2768.1,2767.8,7.52403463]
[1739787895554,0.72253,2767.9,2767.6,0.00541996]
[1739787895761,0.72258,2767.7,2767.6,0.00541996]
[1739787896158,0.72252,2768.0,2767.6,0.00541996]
[1739787896458,0.72251,2768.0,2767.6,0.00541996]
[1739787896960,6.58129,2768.1,2767.6,0.00541996]
[1739787897157,2.651,2768.3,2767.7,10.6327455]
[1739787897364,2.651,2768.3,2767.7,11.8937155]
[1739787897556,0.72248,2768.1,2767.8,0.5527]
[1739787897860,0.72252,2768.0,2767.8,0.5527]
[1739787898053,2.651,2768.4,2767.9,7.76661587]
[1739787898359,0.72244,2768.3,2768.0,3.2078]
[1739787898551,3.86724898,2768.5,2768.0,3.2078]
[1739787898753,2.651,2768.7,2768.3,3.2078]
[1739787898954,2.651,2768.7,2768.4,0.5244]
[1739787899151,2.651,2768.7,2768.4,7.93606699]
[1739787899458,3.37334,2768.7,2768.4,7.93606699]
[1739787899865,0.72236,2768.6,2768.4,7.93606699]
[1739787900062,3.86724898,2768.6,2768.3,3.2078]
[1739787900264,1.80594,2768.5,2767.7,3.2078]
[1739787900457,3.86724898,2768.1,2767.7,3.2078]
[1739787900763,0.72256,2767.8,2767.6,0.00541996]
[1739787901358,0.72258,2767.7,2767.6,0.00541996]
[1739787901558,0.72255,2767.9,2767.6,0.00541996]
[1739787901756,3.2078,2768.1,2767.6,0.00541996]
[1739787901959,2.651,2768.7,2768.0,3.2078]
[1739787902167,0.72242,2768.4,2768.1,0.5308]
[1739787902358,6.51824898,2768.7,2768.1,0.5308]
[1739787902560,3.86724898,2768.4,2767.6,3.21321996]
[1739787902756,3.86724898,2768.1,2767.6,3.21321996]
[1739787903062,3.86724898,2768.1,2767.6,0.00541996]
[1739787903063,0.72258,2767.7,2767.6,0.00541996]
[1739787903867,6.58138,2767.7,2767.6,0.00541996]
[1739787904469,0.72274,2767.1,2767.0,0.5308]
[1739787904872,3.86724898,2767.8,2767.0,0.5308]
[1739787905072,3.2078,2767.6,2767.1,3.2078]
[1739787905569,0.72266,2767.4,2767.1,3.21321996]
[1739787906163,0.00541996,2767.6,2767.2,8.40145786]
[1739787906469,0.00541996,2767.6,2767.4,3.2078]
[1739787906861,0.00541996,2767.6,2767.5,7.55617237]
[1739787907372,0.00541996,2767.6,2767.5,8.27880237]
[1739787907765,0.00541996,2767.6,2767.5,7.55617237]
[1739787908871,0.00541996,2767.6,2767.5,8.27880237]
[1739787909168,0.00541996,2767.6,2767.5,7.55617237]
[1739787909965,3.5992242,2786.5,2767.5,13.55617237]
[1739787909966,3.37436,2768.6,2767.5,13.55617237]
[1739787910160,3.37434,2768.7,2768.2,3.2078]
[1739787910372,3.86724898,2768.8,2768.2,3.7601]
[1739787910561,3.86724898,2768.8,2768.3,8.27025694]
[1739787910765,0.72231,2768.8,2768.3,8.11483694]
[1739787911159,0.72772996,2768.8,2768.3,8.83724694]
[1739787911669,0.00541996,2768.8,2768.3,8.11483694]
[1739787912069,0.72772996,2768.8,2768.4,0.7224]
[1739787912272,0.72772996,2768.8,2768.3,8.11483694]
[1739787912471,0.72232,2768.7,2768.5,7.73043607]
[1739787912975,0.72232,2768.7,2768.4,7.51241725]
[1739787913270,0.72772996,2768.8,2768.4,0.72239]
[1739787913467,0.72772996,2768.8,2768.4,7.51241725]
[1739787913468,0.00541996,2768.8,2768.4,7.51241725]
[1739787913671,0.72772996,2768.8,2768.4,7.51241725]
[1739787913869,0.00541996,2768.8,2768.4,7.51241725]
[1739787914073,0.72233,2768.7,2768.4,7.51241725]
[1739787914265,0.72772996,2768.8,2768.4,7.51241725]
[1739787914470,0.72772996,2768.8,2768.4,8.23480725]
[1739787915171,0.00541996,2768.8,2768.4,7.51241725]
[1739787915382,3.86724898,2768.7,2768.4,7.51241725]
[1739787915569,3.86724898,2768.7,2768.4,0.72238]
[1739787915875,3.21321996,2768.8,2768.5,8.4604007]
[1739787916266,3.93551996,2768.8,2768.6,0.72233]
[1739787916472,3.86724898,2768.7,2768.2,3.7601]
[1739787916872,3.21321996,2768.8,2768.6,0.72233]
[1739787917373,3.21321996,2768.8,2768.3,7.60932912]
[1739787917677,0.00541996,2768.8,2768.5,3.2078]
[1739787918072,0.00541996,2768.8,2768.6,7.37490011]
[1739787918271,0.00541996,2768.8,2768.7,0.72232]
[1739787919779,3.86724898,2769.9,2768.7,13.39750971]
[1739787919967,3.37297,2770.1,2769.3,3.2078]
[1739787920173,3.37297,2770.1,2769.8,0.72203]
[1739787920369,2.651,2770.1,2769.6,3.2078]
[1739787920575,3.86724898,2769.9,2769.6,3.2078]
[1739787920877,3.2078,2769.7,2769.5,0.00541996]
[1739787921072,7.24033898,2769.6,2769.5,0.00541996]
[1739787921469,0.72209,2769.6,2769.5,0.00541996]
[1739787921667,0.00541996,2770.0,2769.5,0.00541996]
[1739787921878,0.00541996,2770.0,2769.9,0.72201]
[1739787922782,0.00541996,2770.0,2769.6,3.2078]
[1739787922982,0.00541996,2770.0,2769.9,0.72201]
[1739787923169,3.92953,2771.0,2770.5,0.72184]
[1739787923473,2.651,2770.9,2770.3,3.2078]
[1739787923679,2.651,2770.9,2770.4,1.1115]
[1739787923874,3.2078,2771.0,2770.4,1.1115]
[1739787923875,5.8588,2771.0,2770.4,8.80772643]
[1739787924070,5.8588,2771.0,2770.6,0.72182]
[1739787924483,5.8588,2771.0,2770.4,8.80772643]
[1739787924484,3.2078,2771.0,2770.4,8.80772643]
[1739787924679,0.5794,2771.3,2770.9,0.72174]
[1739787924680,3.2294,2771.3,2770.9,0.72174]
[1739787924982,3.2294,2771.3,2770.8,3.92956]
[1739787925778,3.95106,2771.3,2770.8,3.92956]
[1739787925975,3.2294,2771.3,2770.8,3.2078]
[1739787926284,2.65,2771.3,2770.8,3.2078]
[1739787926580,2.65,2771.3,2770.8,3.92956]
[1739787926983,3.37164,2771.3,2770.8,3.92956]
[1739787927179,2.65,2771.3,2770.9,0.72173]
[1739787927780,0.72171,2771.1,2770.5,3.7635]
[1739787928083,3.86724898,2771.1,2770.6,7.67338052]
[1739787928277,3.86724898,2771.1,2770.7,0.72179]
[1739787928581,4.58894898,2771.1,2770.8,7.67338052]
[1739787929082,4.58894898,2771.1,2770.8,0.72176]
[1739787929083,3.86724898,2771.1,2770.8,0.72176]
[1739787929279,3.86724898,2771.1,2770.5,3.7635]
[1739787929481,3.86724898,2771.1,2770.8,0.72177]
[1739787929882,3.86724898,2771.1,2770.6,7.69936304]
[1739787930182,4.58894898,2771.1,2770.8,0.72176]
[1739787930387,4.58894898,2771.1,2770.6,8.42117304]
[1739787930584,4.58894898,2771.1,2770.7,0.7218]
[1739787930782,4.58894898,2771.1,2770.6,7.69936304]
[1739787930986,0.72173,2771.0,2770.8,7.43934663]
[1739787931183,3.86724898,2771.1,2770.6,7.43934663]
[1739787931483,40.8,2771.2,2770.8,0.72175]
[1739787931685,0.72171,2771.1,2770.8,0.72175]
[1739787931883,0.72172,2771.1,2770.7,0.72179]
[1739787932083,0.72172,2771.1,2770.8,0.72177]
[1739787932388,0.72172,2771.1,2770.8,8.43720617]
[1739787932577,43.45,2771.3,2770.5,3.7635]
[1739787932781,0.72171,2771.1,2770.8,0.72176]
[1739787933085,0.7217,2771.1,2770.8,0.72176]
[1739787933582,3.37167,2771.3,2770.9,0.72174]
[1739787933783,2.65,2771.3,2770.6,7.49227011]
[1739787934087,2.65,2771.3,2770.9,0.72173]
[1739787934290,41.52162,2771.4,2770.8,3.2078]
[1739787934585,2.649,2771.3,2771.0,0.7217]
[1739787935283,2.649,2771.3,2771.0,0.72172]
[1739787936082,0.5709,2771.7,2771.6,0.72157]
[1739787936282,2.649,2771.9,2771.5,3.2078]
[1739787936991,3.37047,2772.0,2771.7,0.72152]
[1739787937188,2.649,2772.0,2771.5,3.2078]
[1739787937492,0.72157,2771.6,2771.2,3.7306]
[1739787937900,0.72157,2771.6,2771.4,7.78424626]
[1739787938089,3.2078,2771.8,2771.3,7.78424626]
[1739787938290,0.7216,2771.5,2771.2,4.45226]
[1739787938490,3.2078,2771.8,2771.3,7.78424626]
[1739787938789,3.2078,2771.4,2770.9,0.00541996]
[1739787939089,0.72172,2771.0,2770.9,0.00541996]
[1739787939483,7.08704898,2771.3,2770.9,0.00541996]
[1739787939680,2.649,2771.3,2771.1,3.2078]
[1739787939878,3.2078,2771.7,2771.1,3.2078]
[1739787939879,3.92935,2771.7,2771.4,0.72161]
[1739787940085,2.649,2771.6,2771.4,0.72161]
[1739787940290,2.649,2771.6,2771.4,0.7216]
[1739787940989,3.37058,2771.6,2771.2,8.58351106]
[1739787941286,3.37058,2771.6,2771.4,0.72161]
[1739787941491,2.649,2771.6,2771.4,0.72161]
[1739787941885,0.7216,2771.5,2771.3,0.72164]
[1739787942281,0.7216,2771.5,2771.2,8.58351106]
[1739787942282,3.86724898,2772.1,2771.4,10.68622273]
[1739787942488,0.5673,2772.9,2772.0,3.2078]
[1739787942696,3.2078,2772.5,2771.8,3.2078]
[1739787942992,0.72137,2772.4,2772.0,0.72145]
[1739787943190,5.8558,2772.6,2771.9,9.32216077]
[1739787943787,5.8558,2772.6,2772.2,0.72141]
[1739787944088,2.648,2772.6,2772.2,0.72141]
[1739787944290,2.648,2772.6,2772.4,0.72134]
[1739787944686,2.648,2772.6,2772.3,0.72137]
[1739787945292,2.648,2772.6,2772.1,3.2078]
[1739787945691,0.72128,2772.7,2772.3,0.72136]
[1739787946193,3.92904,2772.9,2772.4,8.44365873]
[1739787946589,3.2078,2772.9,2772.4,0.72135]
[1739787946788,3.2078,2772.9,2772.5,7.48485392]
[1739787947099,0.72128,2772.8,2772.5,7.48485392]
[1739787947284,3.92904,2772.9,2772.5,7.48485392]
[1739787947794,3.2078,2772.9,2772.6,0.72131]
[1739787948194,3.2078,2772.9,2772.6,1.27371]
[1739787948693,3.2078,2772.9,2772.6,0.5524]
[1739787948993,3.2078,2773.2,2772.7,10.67526651]
[1739787949194,3.86724898,2773.5,2772.7,10.67526651]
[1739787949195,0.00816637,2773.7,2773.0,3.2078]
[1739787949391,0.00816637,2773.7,2773.3,3.2078]
[1739787949699,0.00816637,2773.7,2773.4,7.46746651]
[1739787950197,0.00816637,2773.7,2773.5,0.5524]
[1739787950896,0.72107,2773.5,2773.4,7.46746651]
[1739787951194,0.72107,2773.5,2771.8,1.80375]
[1739787951195,10.26804898,2773.6,2772.6,3.2078]
[1739787951491,10.26804898,2773.6,2772.8,8.27991549]
[1739787951492,3.86724898,2773.3,2772.8,8.27991549]
[1739787951693,40.8,2773.2,2772.8,7.55866549]
[1739787951891,40.8,2773.2,2772.5,8.13296549]
[1739787951892,0.72127,2772.8,2772.5,0.5743]
[1739787952201,3.2078,2772.9,2772.3,3.7405]
[1739787952498,0.72126,2772.8,2772.4,0.72135]
[1739787952688,3.2078,2772.9,2772.3,3.7405]
[1739787952903,0.72132,2772.6,2772.3,0.5327]
[1739787953394,0.72132,2772.6,2772.2,0.00541008]
[1739787953395,0.72136,2772.4,2772.2,0.00541008]
[1739787953901,0.71535088,2772.4,2772.2,0.00541008]
[1739787954200,0.72138,2772.3,2772.2,0.00541008]
[1739787956101,3.92918,2772.3,2772.2,0.00541008]
[1739787956303,0.72149,2771.9,2771.4,1.27061]
[1739787956496,5.8548,2771.9,2771.4,1.27061]
[1739787957003,2.647,2771.9,2771.6,0.72156]
[1739787957301,0.00537717,2772.0,2771.6,0.72156]
[1739787957605,0.72684717,2772.0,2771.7,8.07047351]
[1739787957806,0.00537717,2772.0,2771.7,8.79200351]
[1739787958301,0.00537717,2772.0,2771.7,8.07047351]
[1739787958500,0.72685717,2772.0,2771.7,8.07047351]
[1739787958699,0.00537717,2772.0,2771.7,8.79200351]
[1739787959096,0.00537717,2772.0,2771.7,8.07047351]
[1739787959296,0.00537717,2772.0,2771.7,8.79199351]
[1739787959497,0.72685717,2772.0,2771.7,8.07047351]
[1739787959704,0.72149,2771.9,2771.7,8.07047351]
[1739787959900,0.00537717,2772.0,2771.7,8.07047351]
[1739787960092,0.72149,2771.9,2771.7,8.07047351]
[1739787960292,0.72151,2771.8,2771.7,7.51277351]
[1739787960497,0.72157,2771.6,2771.5,0.00541008]
[1739787960801,3.86724898,2771.6,2771.5,0.00541008]
[1739787961000,0.00537717,2772.0,2771.5,0.00541008]
[1739787961305,2.65237717,2772.0,2771.6,3.2078]
[1739787961499,2.65237717,2772.0,2771.7,0.5534]
[1739787961699,0.72684717,2772.0,2771.7,8.80038712]
[1739787961900,0.72684717,2772.0,2771.7,7.52545712]
[1739787961901,0.00537717,2772.0,2771.7,7.52545712]
[1739787962305,0.00537717,2772.0,2771.9,3.92929]
[1739787962604,2.647,2772.7,2772.3,0.72137]
[1739787962908,0.72131,2772.6,2772.4,7.67038533]
[1739787963109,3.36829,2772.7,2772.4,7.67038533]
[1739787963410,3.36829,2772.7,2772.3,7.67038533]
[1739787963699,2.647,2772.7,2772.2,3.2078]
[1739787963906,3.36829,2772.7,2772.3,8.39175533]
[1739787964105,2.647,2772.7,2772.3,7.67038533]
[1739787964304,0.72132,2772.6,2772.3,7.67038533]
[1739787964509,2.647,2772.7,2772.3,7.67038533]
[1739787964705,0.72135,2772.5,2772.3,7.67038533]
[1739787964901,2.647,2772.7,2772.3,7.67038533]
[1739787965096,3.86724898,2773.0,2772.6,3.2078]
[1739787965297,3.2078,2773.2,2772.6,3.2078]
[1739787965502,3.2078,2773.2,2772.8,0.72124]
[1739787965704,3.2078,2773.2,2772.7,7.40906705]
[1739787965705,2.647,2773.3,2772.9,3.92901]
[1739787966001,2.647,2773.3,2772.9,3.92903]
[1739787966202,0.5496,2773.4,2773.2,0.72114]
[1739787966402,0.00816637,2773.7,2773.5,0.72106]
[1739787966597,3.2078,2774.2,2773.9,0.72097]
[1739787966799,2.646,2774.4,2774.0,0.72093]
[1739787967198,2.646,2774.4,2773.9,0.72096]
[1739787967397,7.07504898,2774.5,2773.9,0.72096]
[1739787967398,7.07504898,2774.5,2774.1,7.69225697]
[1739787967607,3.21527585,2774.8,2774.1,3.2078]
[1739787968110,3.21527585,2774.8,2774.2,7.55426924]
[1739787968305,3.21527585,2774.8,2774.4,0.72083]
[1739787968602,3.21527585,2774.8,2774.5,7.55426924]
[1739787969109,3.21527585,2774.8,2774.4,0.72082]
[1739787969309,3.21527585,2774.8,2774.5,0.72081]
[1739787969614,0.00747585,2774.8,2774.7,3.2078]
[1739787969907,0.00747585,2774.8,2774.7,10.72757463]
[1739787970108,0.00747585,2774.8,2774.7,7.51977463]
[1739787970405,3.87472483,2774.8,2774.5,0.00541008]
[1739787970610,7.80327483,2774.8,2774.5,0.00541008]
[1739787970809,10.44927483,2774.8,2774.5,0.00541008]
[1739787971111,0.72077,2774.7,2774.5,0.00541008]
[1739787971300,9.72852483,2774.8,2774.5,0.00541008]
[1739787971808,1.80207,2774.5,2773.3,3.2078]
[1739787972006,3.2078,2773.5,2772.8,3.2078]
[1739787972311,0.72125,2772.9,2772.3,8.00473805]
[1739787972513,0.72125,2772.9,2772.2,0.28625519]
[1739787972514,3.92912,2772.6,2772.2,0.28625519]
[1739787972811,3.86724898,2772.8,2772.2,8.14922805]
[1739787973106,0.00541008,2772.7,2772.2,7.42783805]
[1739787973810,0.72669008,2772.7,2772.2,7.42783805]
[1739787974311,0.00541008,2772.7,2772.2,8.14923805]
[1739787974509,0.00541008,2772.7,2772.3,0.72137]
[1739787974702,0.00541008,2772.7,2772.2,7.42783805]
[1739787974903,0.72669008,2772.7,2772.2,8.14923805]
[1739787975105,0.00541008,2772.7,2772.2,7.42783805]
[1739787975502,0.00541008,2772.7,2772.3,0.72137]
[1739787975698,0.00541008,2772.7,2772.2,7.42783805]
[1739787975901,0.00541008,2772.7,2772.4,0.72134]
[1739787976305,0.00541008,2772.7,2772.2,7.42783805]
[1739787976515,2.65141008,2772.7,2772.5,8.3740721]
[1739787976705,2.65141008,2772.7,2772.2,7.6527521]
[1739787976905,2.65141008,2772.7,2772.5,0.72132]
[1739787977107,2.65141008,2772.7,2772.6,7.63655022]
[1739787977414,2.65141008,2772.7,2772.3,7.63655022]
[1739787977811,0.72141,2772.2,2772.1,0.00541008]
[1739787978108,2.646,2772.2,2772.1,0.00541008]
[1739787978314,0.00541008,2772.7,2772.2,0.7214]
[1739787978516,0.00541008,2772.7,2772.3,3.92917]
[1739787978709,0.00541008,2772.7,2772.3,10.82104942]
[1739787979012,0.72670008,2772.7,2772.3,7.61324942]
[1739787979514,0.72672008,2772.7,2772.3,7.61324942]
[1739787979716,0.72132,2772.6,2772.3,7.61324942]
[1739787980110,0.72670008,2772.7,2772.3,7.61324942]
[1739787980612,0.00541008,2772.7,2772.3,7.61324942]
[1739787981012,0.72141,2772.2,2772.1,0.00541008]
[1739787981609,0.72153,2771.8,2771.5,0.5769]
[1739787981817,0.72157,2771.6,2771.5,0.5769]
[1739787982016,0.72159,2771.5,2771.4,0.5433]
[1739787982214,0.7217,2771.1,2771.0,0.28813236]
[1739787982412,2.646,2771.3,2770.8,3.92957]
[1739787982612,2.646,2771.3,2770.8,11.52169062]
[1739787982813,0.72169,2771.2,2770.8,10.8053407]
[1739787983113,2.65141008,2771.3,2770.8,10.8053407]
[1739787983319,3.3594,2771.1,2770.8,0.00541008]
[1739787983515,4.08111,2771.1,2770.8,0.00541008]
[1739787983818,4.19521381,2770.9,2769.8,0.5636]
[1739787984116,3.2078,2770.5,2769.9,7.66385612]
[1739787984318,7.40301381,2770.5,2769.9,7.66385612]
[1739787984617,3.2078,2770.0,2769.6,7.66385612]
[1739787984914,1.80461,2770.6,2768.6,3.2078]
[1739787984915,7.40301381,2769.7,2768.6,3.2078]
[1739787985114,7.40301381,2769.7,2769.5,0.00541008]
[1739787985115,3.2078,2769.7,2769.5,0.00541008]
[1739787985320,2.647,2769.6,2769.5,0.00541008]
[1739787986313,2.9358,2769.6,2769.5,0.00541008]
[1739787986514,0.2888,2769.6,2769.5,0.00541008]